Cogmind - Beta 13 X2 @@@ ROGUE MODE // 2024.02.09 @ 12:36:01 Player: Minty Result: Destroyed by S-10 Pest with Light Assault Rifle Performance ------------- Evolutions (0) 0 Regions Visited (2) 400 Robots Destroyed (15) 75 Value Destroyed (461) 461 Prototype IDs (4) 80 Alien Tech Used (0) 0 Bonus (19) 19 TOTAL SCORE: 1035 Bonus ------- High Alert Combat Kills 19 Cogmind --------- Core Integrity 0/250 Matter 282/300 Energy 125/125 System Corruption 1% Temperature Cool (0) Movement Rolling (80) Location -10/Mines Parts ------- > --- POWER (1) -------- Light Ion Engine > --- PROPULSION (2) --- Wheel > --- UTILITY (2) ------ Small Storage Unit Structural Scanner > --- WEAPON (2) ------- (None) > --- INVENTORY (8) ---- Light Treads Light Treads Improved Heat Sink Large Matter Pod (150) Structural Scanner Improved Terrain Scanner Peak State ------------ > --- POWER ------------ Light Ion Engine > --- PROPULSION ------- Aluminum Leg Aluminum Leg > --- UTILITY ---------- Small Storage Unit Structural Scanner > --- WEAPON ----------- Assault Rifle Assault Rifle > --- INVENTORY -------- Light Treads Light Treads Improved Heat Sink Large Matter Pod Structural Scanner EM Pulse Gun EM Pulse Gun EM Pulse Gun [Rating: 8] Favorites ----------- Power Ion Engine Engine Ion Engine Propulsion Aluminum Leg Leg Aluminum Leg Wheel Wheel Utility Small Storage Unit Device Structural Scanner Storage Small Storage Unit Weapon Assault Rifle Energy Gun EM Pulse Gun Ballistic Gun Assault Rifle Build | -11 -10 -10 ------- Run | Yrd Mat Min Slots Evolved . | . . . Power . | . . . Propulsion . | . . . Utility . | . . . Weapon . | . . . Parts Attached 12 | . 4 8 Power 3 | . 1 2 Engine 3 | . 1 2 Core . | . . . Reactor . | . . . Propulsion 2 | . . 2 Treads . | . . . Leg . | . . . Wheel 2 | . . 2 Hover . | . . . Flight . | . . . Utility 2 | . 2 . Device 1 | . 1 . Storage 1 | . 1 . Processor . | . . . Hackware . | . . . Protection . | . . . Artifact . | . . . Weapon 5 | . 1 4 Energy Gun 4 | . . 4 Energy Cannon . | . . . Ballistic Gun 1 | . 1 . Ballistic Cannon . | . . . Launcher . | . . . Special Weapon . | . . . Impact Weapon . | . . . Slashing Weapon . | . . . Piercing Weapon . | . . . Special Melee Weapon . | . . . Unidentified Prototypes . | . . . Parts Lost 10 | . 1 9 Power 2 | . 1 1 Propulsion 3 | . . 3 Utility . | . . . Weapon 5 | . . 5 Highest Loss Streak 6 | . 1 6 To Critical Strikes . | . . . Average Slot Usage (%) 86 | . 93 73 Engine 11 | . 13 8 Leg 21 | . 28 8 Wheel 4 | . . 13 Device 9 | . 6 14 Storage 15 | . 15 14 Energy Gun 2 | . . 6 Ballistic Gun 20 | . 27 7 Naked Turns . | . . . Heaviest Build 17 | 14 17 13 Greatest Support 20 | 20 20 20 Greatest Overweight (x) 1 | . . 1 Average Overweight (x) . | . . . Largest Inventory Capacity 8 | 8 8 8 Average Capacity 8 | 8 8 8 Most Carried 8 | 6 8 8 Average Carried 7 | 6 7 7 Final Capacity 8 | 8 8 8 Final Carried 8 | 6 8 6 Class Distribution -------------------- 100% | Mutant Dominant Class ---------------- Mutant | -10/Materials Mutant | -10/Mines Resources | -11 -10 -10 ----------- Run | Yrd Mat Min Matter Collected 620 | 200 249 171 Remotely . | . . . Salvage Created 374 | . 292 82 Parts 31 | . 28 3 Haulers Intercepted . | . . . Recyclers Shooed . | . . . Parts Field Recycled . | . . . Retrieved Matter . | . . . Parts Self-Destructed . | . . . Prevented . | . . . Kills | -11 -10 -10 ------- Run | Yrd Mat Min Combat Hostiles Destroyed 15 | . 10 5 Guns 13 | . 8 5 AOE 2 | . 2 . Classes Destroyed 7 | . 5 2 Builder 1 | . 1 . Operator 1 | . 1 . Watcher 1 | . 1 . Swarmer 4 | . 3 1 Grunt 7 | . 7 . Demolisher 1 | . . 1 Assembled 3 | . . 3 Best Kill Streak 9 | . 9 3 Combat Bots Only 6 | . 6 3 Max Kills in Single Turn 3 | . 3 1 Gunslinging . | . . . Exploded 1 | . 1 . Melee . | . . . Uniques/NPCs Destroyed . | . . . Combat | -11 -10 -10 -------- Run | Yrd Mat Min Hostile Shots Fired 92 | . 38 54 Missed 20 | . 11 9 Damage Taken 969 | . 304 665 Core 250 | . 51 199 Absorbed by Shields . | . . . Core Remaining (%) 100 | 100 . . Volleys Fired 48 | . 28 20 Largest 2 | . 2 2 Hottest 80 | . 40 80 Shots Fired 92 | . 56 36 Gun 92 | . 56 36 Cannon . | . . . Launcher . | . . . Special . | . . . Kinetic 72 | . 56 16 Thermal . | . . . Explosive . | . . . Electromagnetic 20 | . . 20 Robot Hit Streak 7 | . 7 5 Robot Miss Streak 7 | . 5 7 Penetration Max . | . . . Secondary Targets 3 | . 2 1 Max Gunslinging Chain 1 | . 1 1 Shots Hit Robots 43 | . 29 14 Core Hits 29 | . 18 11 Critical Kills 1 | . 1 . Critical Parts Destroyed 1 | . 1 . Critical Strikes 3 | . 2 1 Destroy 2 | . 2 . Corrupt 1 | . . 1 Melee Attacks . | . . . Impact . | . . . Slashing . | . . . Piercing . | . . . Sneak Attacks . | . . . Combat Hostiles . | . . . Follow-up Attacks . | . . . Damage Inflicted 1223 | . 1038 185 Guns 589 | . 407 182 Cannons . | . . . Explosions 631 | . 631 . Melee . | . . . Ramming 3 | . . 3 Kinetic 501 | . 407 94 Thermal . | . . . Explosive 631 | . 631 . Electromagnetic 88 | . . 88 Impact . | . . . Slashing . | . . . Piercing . | . . . Highest Corruption 1 | . 1 1 Average Corruption 1 | . 1 1 Corruption Purged . | . . . Corruption Blocked . | . . . Effects 5 | . 3 2 Message Errors 3 | . 2 1 Matter Fused 1 | . . 1 Heat Flow Errors 1 | . 1 . Overload Shots . | . . . Overflow Damage 20 | . 20 . Projectiles . | . . . Explosions 20 | . 20 . Melee . | . . . Knockbacks . | . . . Impact . | . . . Kinetic . | . . . Secondary . | . . . Self-Inflicted Damage 1 | . . 1 Shots . | . . . Rammed 1 | . . 1 Targets Rammed 2 | . 1 1 Kicked 1 | . 1 . Crushed . | . . . Highest Temperature 126 | . 126 72 Average Temperature 51 | . 61 37 Received Heat Transfer 135 | . 135 . Siege Activations . | . . . Robots Corrupted . | . . . Combat Hostiles . | . . . Parts Fried . | . . . Impact Corruptions . | . . . Robots Melted . | . . . Combat Hostiles . | . . . Parts Melted . | . . . Heat Transferred . | . . . Parts Sabotaged . | . . . Parts Stolen . | . . . Parts Stripped . | . . . Power Chain Reactions . | . . . Missiles Intercepted . | . . . Alert | -11 -10 -10 ------- Run | Yrd Mat Min Peak Influence 429 | . 429 166 Initial 166 | . . 166 Average 199 | . 243 123 Maximum Alert Level 2 | . 2 . Low Security (%) 56 | 100 32 100 Level 1 39 | . 60 . Level 2 4 | . 6 . Level 3 . | . . . Level 4 . | . . . Level 5 . | . . . High Security . | . . . Max Security . | . . . Squads Dispatched 3 | . 3 . Investigation 3 | . 3 . Extermination . | . . . Reinforcement . | . . . Assault . | . . . Garrison . | . . . Intercept . | . . . Searches Triggered . | . . . Construction Impeded . | . . . Haulers Reinforced . | . . . Active Scanning Responses . | . . . Cargo Convoy Interrupts . | . . . Stealth | -11 -10 -10 --------- Run | Yrd Mat Min Distress Signals 1 | . 1 . Communications Jammed . | . . . Distress Signals . | . . . Times Spotted 23 | . 10 13 Peak Tracking Total 8 | . 3 8 Tactical Retreats . | . . . Traps | -11 -10 -10 ------- Run | Yrd Mat Min Traps Triggered . | . . . Indirectly . | . . . Trap Hack Attempts . | . . . Triggered . | . . . Disarmed . | . . . Reprogrammed . | . . . Reused . | . . . Traps Extracted . | . . . Installed . | . . . Triggered . | . . . Objects Rigged 8 | . 8 . Exploded 3 | . 3 . Machines | -11 -10 -10 ---------- Run | Yrd Mat Min Machines Disabled 8 | . 7 1 Max in Single Turn 2 | . 2 1 Machines Repaired . | . . . Machines Dismantled . | . . . Machines Sabotaged . | . . . Overloaded Fab Kills . | . . . Hacking | -11 -10 -10 --------- Run | Yrd Mat Min Machines Accessed 6 | . 6 . Terminals 4 | . 4 . Fabricators . | . . . Repair Stations . | . . . Recycling Units 2 | . 2 . Scanalyzers . | . . . Garrison Access . | . . . Total Hacks 20 | . 20 . Successful 10 | . 10 . Failed 10 | . 10 . Catastrophic . | . . . Database Lockouts . | . . . Manual 3 | . 3 . Terminals 14 | . 14 . Fabricators . | . . . Repair Stations . | . . . Recycling Units 6 | . 6 . Scanalyzers . | . . . Garrison Access . | . . . Terminal Hacks 4 | . 4 . Robot Analysis 1 | . 1 . Prototype ID Bank 3 | . 3 . Fabricator Hacks . | . . . Repair Station Hacks . | . . . Recycling Unit Hacks 5 | . 5 . Process 2 | . 2 . Report Inventory 2 | . 2 . Retrieve Components 1 | . 1 . Scanalyzer . | . . . Garrison Access Hacks . | . . . Unauthorized Hacks 1 | . 1 . Terminals 1 | . 1 . Detonate 1 | . 1 . Fabricators . | . . . Repair Stations . | . . . Recycling Units . | . . . Scanalyzers . | . . . Garrison Access . | . . . Data Cores Recovered . | . . . Used . | . . . Hacking Detections 6 | . 6 . Full Trace Events 6 | . 6 . Feedback Events 1 | . 1 . Corruption 1 | . 1 . Feedback Blocked . | . . . Robot Schematics Acquired . | . . . Robots Built . | . . . Authchips . | . . . Time . | . . . Total Robot Build Rating . | . . . Part Schematics Acquired . | . . . Parts Built . | . . . Authchips . | . . . Time . | . . . Total Part Build Rating . | . . . Parts Repaired . | . . . Time . | . . . Parts Recycled . | . . . Recycled Matter 22 | . 22 . Retrieved Matter . | . . . Retrieved Components . | . . . Parts Scanalyzed . | . . . Part Schematics Acquired . | . . . Parts Damaged . | . . . Bothacking | -11 -10 -10 ------------ Run | Yrd Mat Min Used RIF Installer . | . . . Robots Hacked . | . . . Non-combat . | . . . Combat . | . . . Robot Hacks Applied . | . . . Relay Couplers Released . | . . . Fabnet Peak Effective % . | . . . Robots Rewired . | . . . Allies Hacked . | . . . Hacks Repelled . | . . . Allies | -11 -10 -10 -------- Run | Yrd Mat Min Total Allies 1 | . . 1 Largest Group 1 | . . 1 Highest-Rated Group 31 | . . 31 Highest-Rated Ally 31 | . . 31 Total Orders . | . . . Ally Attacks 12 | . . 12 Total Damage 168 | . . 168 Kills 4 | . . 4 Allies Corrupted . | . . . Allies Melted 1 | . . 1 Intel | -11 -10 -10 ------- Run | Yrd Mat Min Robot Analysis Total 1 | . 1 . Derelict Logs Recovered . | . . . Drone Launches . | . . . Drone Recoveries . | . . . Exploration | -11 -10 -10 ------------- Run | Yrd Mat Min Turns Passed 548 | 3 351 194 Spaces Moved 350 | 3 211 136 Core 9 | . . 9 Treads . | . . . Legs 239 | 3 211 25 Wheels 102 | . . 102 Hover . | . . . Flight . | . . . Fastest Speed 80 | 120 120 80 Average Speed 108 | 120 120 89 Slowest Speed 190 | 120 120 190 Overloaded Moves . | . . . Propulsion Burnouts . | . . . Robots Hopped . | . . . Cave-ins Triggered . | . . . Exploration Rate (%) 24 | 2 37 34 Regions Visited 2 Branch Regions 1 Pre-discovered Areas . | . . . Known Exits Taken . | . . . Unknown Exits Taken 2 | 1 1 . Scrap Searched 1 | . . 1 Spaces Dug . | . . . Terrain Destroyed 20 | . 20 . Melee . | . . . Projectile . | . . . AOE 20 | . 20 . Terrain Rammed . | . . . Walls Destroyed . | . . . Machines Disabled . | . . . Actions | -11 -10 -10 --------- Run | Yrd Mat Min Total 426 | 2 253 171 Wait 3 | . . 3 Move 348 | 2 210 136 Hop . | . . . Pick Up 6 | . 5 1 Fast Attach 6 | . 3 3 Attach 5 | . 1 4 Detach 2 | . 1 1 Swap 1 | . . 1 Drop 5 | . 4 1 Fire 48 | . 28 20 Melee . | . . . Ram 1 | . . 1 Kick 1 | . 1 . Crush . | . . . Escape Stasis . | . . . Rewire . | . . . Trap . | . . . Miscellaneous . | . . . Route ------- -11/Scrapyard -10/Materials -10/Mines History --------- Turn | Location | Event 1 | -11/Scrapyard | Discovered new exit (range 2) 4 | -11/Scrapyard | Entered Materials 304 | -10/Materials | Build established: Mutant 309 | -10/Materials | Discovered new exit (range 15) 355 | -10/Materials | Entered Mines 356 | -10/Mines | Assembled infested the area 358 | -10/Mines | Received a Mining Laser from a helpful Derelict 362 | -10/Mines | Assisted by a Guerilla fighting off Assembled 424 | -10/Mines | Core integrity fell below 50% 434 | -10/Mines | Core integrity fell below 20% 461 | -10/Mines | Lost 6 parts (1p2n3w) 549 | -10/Mines | Destroyed by S-10 Pest with Light Assault Rifle Last Messages --------------- 00469_ Dropped Lgt. Ion Engine. 00470_ R-06 Scavenger collects Mining Laser. 00474_ R-06 Scavenger collects Lgt. Ion Engine. 00477_ Extracted 22 matter. 00483_ T-07 Excavator is excavating. 00492_ Searching scrap... 00492_ Found Heat Sink. 00492_ Found Hcp. Matter Pod. 00492_ Found Heat Sink. 00492_ Found 22 Matter. 00503_ System corrupted: Matter fused (-7). 00513_ Slammed into R-06 Scavenger. 00515_ K-01 Serf collects debris. 00529_ S-10 Pest destroyed. 00529_ Switching to secondary target: S-10 Pest. 00529_ Pulverizer disabled. 00531_ K-01 Serf collects debris. 00531_ EM Pulse Gun destroyed. 00535_ ZSM6TINZZAWGY&CWC3ZB 00549_ Wheel destroyed. Map ----- +----------------------------------------------------+ | ???????????#### ##???????????????? | | ???????????### #########?????????? | | ???????????## ####### ##########????????? | | ???????## ?## ######## ?? #### ####???????? | | ???###### ?### ###????????? ## ###???????? | | ???###### ##### ##?????????? ####?????? | | ???## !##### ######### ?? """ ####?????? | | ???## !% ###########?# = """ ?????? | | ???###### ! #####%[ "" ##??????? | | ???########### ###### #####= """ ##??????? | | ???????######## ####### ##??????? | | ????????????############# ###### ###??????? | | ?????????????############ ######## ####??????? | | ???????????????????## ##??#### ###???????? | | ???????????????????## ##????### ##????????? | | ???????????????????## s ##?????## ##????????? | | ???????????????????## ##???????? ##????????? | | ????????????????##### """s ##???????? ##????????? | | ????????????????##### """ ##???????? ##????????? | | ????????????????## """ ##???????????????????? | | ????????????????## # ##???????????????????? | | ?????????????##### ##### ####???????????????????? | | ?????????????##### ##### ####???????????????????? | | ?????????????## # ### ##?????????????????????? | | ?????????????## # ## ##?????????????????????? | | ?????????????## ###@##?????????????????????? | | ????????????### % ### ##?????????????????????? | | ??????????##### ## ##?????????????????????? | | ??????????#### ## ?????????????????????? | | ??? ??????## # #####?????????????????????? | | ?? ######## #######?????????????????????? | | ?? ####### ### ????????????????????????? | | ? ## ## % # ?????????????????????????? | | ? # # ##???????????????????????? | | ? # ####### ##???????????????????????? | | ## % %"##???????????????????????? | | ## ####### ???????????????????????? | | ### # ##### ???????????????????????? | | ?### % ##??????????????????????????? | | ?#### ## #####??????????????????????????? | | ??######## #####??????????????????????????? | | ???### ###?????????????????????????????? | | ????## #### ####?????????????????????????????? | | ##?? ######## ####???? ##??????????????????????? | | #####????###### #####??? ###?????????????????????? | | ######??###### | ####? ###?????????????????????? | | ###??#### ## ###????????????????????? | | | ##??## ##????????????????????? | | ##??## ## ###???????????????????? | | ###### # ## ##???????????????????? | +----------------------------------------------------+ Best States ------------- Heat Dissipation 25 Energy Generation 10 Energy Capacity 250 Matter Stores 302 Matter Capacity 450 Sight Range 16 Terrain Scan Density 10 Evasion (%) 55 Item Schematics ----------------- None Robot Schematics ------------------ None Fabricated ------------ Nothing Alien Tech Used ----------------- None Achievements -------------- None Challenges ------------ None Game ------ Seed MolecularMinesnifferMapper Manual? 0 Play Time 00:06:23 Cumulative 646.0 hours Start 2024.02.09 @ 12:31:38 End 2024.02.09 @ 12:36:01 Sessions 1 Manual Loads 0 Difficulty Rogue Special Mode None Game No. 629 Rogue 356 Adventurer 123 Explorer 150 Win Type - Total 25 Types 19/0/4/1/0/0/0/1/0 Lore% 80 Gallery% 91 Achievement% 76 Wizard Run 0 Options --------- ASCII 0 Keyboard 1 Movement Numpad Keybinds 0 Fullscreen 2 Font 18/X11Bold Map View 76x50 Zoom Use 24% Tactical HUD 1 Map Filters NONE Filters NONE Steam 1 RUN: e0ff45e2-5ac6-4b8e-b09c-005b18f0e8ed